[Event "*** Titled Tuesday Blitz"]
[Site "Chess.com"]
[Date "2020.05.12"]
[Round "1"]
[White "kuban1991"]
[Black "smshk35"]
[Result "1-0"]
[WhiteElo "2734"]
[BlackElo "2387"]
[TimeControl "180+1"]
[EndTime "10:05:22 PDT"]
[Termination "kuban1991 won by resignation"]

1. Nf3 {[%clk 0:02:51.6]} 1... Nf6 {[%clk 0:02:58.2]} 2. g3 {[%clk 0:02:51.5]}
2... g6 {[%clk 0:02:58.1]} 3. Bg2 {[%clk 0:02:52.4]} 3... Bg7 {[%clk 0:02:58.6]}
4. O-O {[%clk 0:02:52.3]} 4... O-O {[%clk 0:02:58.9]} 5. c4 {[%clk 0:02:52.6]}
5... d6 {[%clk 0:02:58.8]} 6. Nc3 {[%clk 0:02:51]} 6... e5 {[%clk 0:02:58]} 7.
d3 {[%clk 0:02:50.9]} 7... Re8 {[%clk 0:02:55.6]} 8. Rb1 {[%clk 0:02:49.2]} 8...
e4 {[%clk 0:02:49.4]} 9. Nd4 {[%clk 0:02:46.6]} 9... exd3 {[%clk 0:02:44.8]} 10.
exd3 {[%clk 0:02:47.5]} 10... c6 {[%clk 0:02:36.5]} 11. Re1 {[%clk 0:02:45.5]}
11... Bg4 {[%clk 0:02:33.6]} 12. Rxe8+ {[%clk 0:02:28.5]} 12... Qxe8 {[%clk
0:02:34.5]} 13. Qb3 {[%clk 0:02:23.8]} 13... Bc8 {[%clk 0:01:57.7]} 14. Bd2
{[%clk 0:02:16.3]} 14... Na6 {[%clk 0:01:56.8]} 15. Re1 {[%clk 0:02:16.3]} 15...
Qd8 {[%clk 0:01:48.9]} 16. Qc2 {[%clk 0:02:11.4]} 16... Nc5 {[%clk 0:01:43.6]}
17. b4 {[%clk 0:02:10.9]} 17... Ne6 {[%clk 0:01:43.1]} 18. Nxe6 {[%clk
0:02:10.5]} 18... Bxe6 {[%clk 0:01:44]} 19. b5 {[%clk 0:02:11]} 19... d5 {[%clk
0:01:41.6]} 20. Bf4 {[%clk 0:01:59.4]} 20... dxc4 {[%clk 0:01:38.3]} 21. dxc4
{[%clk 0:01:59.3]} 21... Bxc4 {[%clk 0:01:36.3]} 22. bxc6 {[%clk 0:01:59.3]}
22... bxc6 {[%clk 0:01:36]} 23. Bxc6 {[%clk 0:01:59.7]} 23... Rc8 {[%clk
0:01:35.7]} 24. Bb7 {[%clk 0:02:00.2]} 24... Nh5 {[%clk 0:01:20]} 25. Bxc8
{[%clk 0:01:54.3]} 25... Nxf4 {[%clk 0:01:09.9]} 26. Bg4 {[%clk 0:01:41.1]}
26... Nd3 {[%clk 0:00:52.8]} 27. Rd1 {[%clk 0:01:39.3]} 27... Qa5 {[%clk
0:00:48.3]} 28. Ne4 {[%clk 0:01:32.4]} 28... Ne5 {[%clk 0:00:44.4]} 29. Be2
{[%clk 0:01:29.7]} 29... Bd5 {[%clk 0:00:37.6]} 30. Qc8+ {[%clk 0:01:23.1]} 1-0

[Event "*** Titled Tuesday Blitz"]
[Site "Chess.com"]
[Date "2020.05.12"]
[Round "1"]
[White "Oneofmyturns"]
[Black "shav3184"]
[Result "1-0"]
[WhiteElo "2659"]
[BlackElo "2335"]
[TimeControl "180+1"]
[EndTime "10:05:26 PDT"]
[Termination "Oneofmyturns won by resignation"]

1. d4 {[%clk 0:03:00.9]} 1... d5 {[%clk 0:02:59.3]} 2. c4 {[%clk 0:03:00.3]}
2... c6 {[%clk 0:02:59]} 3. Nf3 {[%clk 0:02:56.9]} 3... Nf6 {[%clk 0:02:58.2]}
4. e3 {[%clk 0:02:57.5]} 4... e6 {[%clk 0:02:57.8]} 5. Nc3 {[%clk 0:02:57.1]}
5... Nbd7 {[%clk 0:02:54.2]} 6. Qc2 {[%clk 0:02:57.2]} 6... Be7 {[%clk
0:02:52.4]} 7. b3 {[%clk 0:02:56.9]} 7... O-O {[%clk 0:02:50.9]} 8. Bd3 {[%clk
0:02:51.2]} 8... b6 {[%clk 0:02:47.4]} 9. O-O {[%clk 0:02:50.3]} 9... Bb7 {[%clk
0:02:47]} 10. Bb2 {[%clk 0:02:50.8]} 10... Rc8 {[%clk 0:02:44.6]} 11. Rfd1
{[%clk 0:02:49]} 11... Qc7 {[%clk 0:02:42.4]} 12. Rac1 {[%clk 0:02:48.3]} 12...
Qb8 {[%clk 0:02:41.9]} 13. Qe2 {[%clk 0:02:44.6]} 13... c5 {[%clk 0:02:39.4]}
14. cxd5 {[%clk 0:02:33.6]} 14... exd5 {[%clk 0:02:36.7]} 15. Bf5 {[%clk
0:02:33]} 15... Rcd8 {[%clk 0:02:26.8]} 16. Ne5 {[%clk 0:02:29.5]} 16... Nxe5
{[%clk 0:02:21.9]} 17. dxe5 {[%clk 0:02:30.4]} 17... Qxe5 {[%clk 0:02:21.4]} 18.
Nxd5 {[%clk 0:02:21.5]} 18... Rxd5 {[%clk 0:00:26.9]} 19. Bxe5 {[%clk
0:02:21.8]} 19... Rxe5 {[%clk 0:00:27.8]} 20. Bh3 {[%clk 0:02:22.1]} 20... Ne4
{[%clk 0:00:24.3]} 21. f4 {[%clk 0:01:38.3]} 21... Rd5 {[%clk 0:00:20.4]} 22.
Rxd5 {[%clk 0:01:36.6]} 22... Bxd5 {[%clk 0:00:21.3]} 23. Bg4 {[%clk 0:01:36.4]}
23... f5 {[%clk 0:00:20.2]} 24. Bf3 {[%clk 0:01:36.5]} 24... Bf6 {[%clk
0:00:20.4]} 25. Qa6 {[%clk 0:01:35.1]} 25... Rf7 {[%clk 0:00:19.9]} 26. Qc8+
{[%clk 0:01:31.3]} 26... Rf8 {[%clk 0:00:20.1]} 27. Qxf5 {[%clk 0:01:29.1]} 1-0

[Event "*** Titled Tuesday Blitz"]
[Site "Chess.com"]
[Date "2020.05.12"]
[Round "1"]
[White "Riptide27"]
[Black "Playgood28"]
[Result "1-0"]
[WhiteElo "2558"]
[BlackElo "2226"]
[TimeControl "180+1"]
[EndTime "10:05:26 PDT"]
[Termination "Riptide27 won by resignation"]

1. d4 {[%clk 0:02:56.3]} 1... f5 {[%clk 0:02:58.8]} 2. g3 {[%clk 0:02:55.2]}
2... Nf6 {[%clk 0:02:58.1]} 3. Bg2 {[%clk 0:02:56.1]} 3... g6 {[%clk 0:02:56.6]}
4. c4 {[%clk 0:02:54.7]} 4... d6 {[%clk 0:02:56.2]} 5. Nc3 {[%clk 0:02:54.9]}
5... Bg7 {[%clk 0:02:55.9]} 6. Nf3 {[%clk 0:02:55.3]} 6... O-O {[%clk
0:02:55.7]} 7. O-O {[%clk 0:02:55.5]} 7... c6 {[%clk 0:02:56.2]} 8. d5 {[%clk
0:02:54.2]} 8... e5 {[%clk 0:02:55.3]} 9. dxe6 {[%clk 0:02:51.7]} 9... Bxe6
{[%clk 0:02:55.1]} 10. Qa4 {[%clk 0:02:41.4]} 10... Qe7 {[%clk 0:02:37.9]} 11.
Ng5 {[%clk 0:02:35.6]} 11... Nbd7 {[%clk 0:02:28.2]} 12. Nxe6 {[%clk 0:02:28.6]}
12... Qxe6 {[%clk 0:02:27]} 13. Be3 {[%clk 0:02:08.9]} 13... Ng4 {[%clk
0:02:05.5]} 14. Bf4 {[%clk 0:02:05.3]} 14... Nc5 {[%clk 0:01:59.8]} 15. Qc2
{[%clk 0:02:01.6]} 15... Ne5 {[%clk 0:01:52.9]} 16. b3 {[%clk 0:01:59.6]} 16...
h6 {[%clk 0:01:44]} 17. Rad1 {[%clk 0:01:57.6]} 17... g5 {[%clk 0:01:28.6]} 18.
Bc1 {[%clk 0:01:55.4]} 18... f4 {[%clk 0:01:14.8]} 19. Nd5 {[%clk 0:01:36.9]}
19... f3 {[%clk 0:01:02.2]} 20. exf3 {[%clk 0:01:37.8]} 20... Kh8 {[%clk
0:00:32.8]} 21. Nc7 {[%clk 0:01:34.5]} 21... Qf7 {[%clk 0:00:32]} 22. Nxa8
{[%clk 0:01:33.8]} 22... Rxa8 {[%clk 0:00:31.3]} 23. f4 {[%clk 0:01:33.1]} 23...
gxf4 {[%clk 0:00:28.4]} 24. Bxf4 {[%clk 0:01:34]} 24... Ncd3 {[%clk 0:00:19.7]}
25. Rxd3 {[%clk 0:01:32.6]} 1-0

[Event "*** Titled Tuesday Blitz"]
[Site "Chess.com"]
[Date "2020.05.12"]
[Round "1"]
[White "baag"]
[Black "Kopytkin"]
[Result "1-0"]
[WhiteElo "2661"]
[BlackElo "2333"]
[TimeControl "180+1"]
[EndTime "10:05:30 PDT"]
[Termination "baag won on time"]

1. b3 {[%clk 0:03:00.9]} 1... e5 {[%clk 0:02:59.1]} 2. Bb2 {[%clk 0:03:01.8]}
2... d6 {[%clk 0:02:58.5]} 3. Nf3 {[%clk 0:03:02.2]} 3... Nd7 {[%clk 0:02:58.4]}
4. e3 {[%clk 0:03:02.7]} 4... g6 {[%clk 0:02:58.3]} 5. d4 {[%clk 0:03:03.1]}
5... Bg7 {[%clk 0:02:58.4]} 6. c4 {[%clk 0:03:02]} 6... Ne7 {[%clk 0:02:56.7]}
7. Be2 {[%clk 0:03:02.3]} 7... O-O {[%clk 0:02:56.3]} 8. O-O {[%clk 0:03:02.9]}
8... h6 {[%clk 0:02:48.9]} 9. e4 {[%clk 0:02:58.6]} 9... b6 {[%clk 0:02:39.7]}
10. Nc3 {[%clk 0:02:56.4]} 10... Bb7 {[%clk 0:02:39.8]} 11. Qd2 {[%clk
0:02:56.5]} 11... Qe8 {[%clk 0:02:15.7]} 12. Nd5 {[%clk 0:02:49.1]} 12... Rc8
{[%clk 0:02:03.6]} 13. Rac1 {[%clk 0:02:44.5]} 13... exd4 {[%clk 0:02:01.3]} 14.
Bxd4 {[%clk 0:02:41.8]} 14... Nxd5 {[%clk 0:01:52.3]} 15. Bxg7 {[%clk
0:02:39.1]} 15... Kxg7 {[%clk 0:01:50.4]} 16. exd5 {[%clk 0:02:39]} 16... a5
{[%clk 0:01:39.7]} 17. Rfe1 {[%clk 0:02:38.4]} 17... Qd8 {[%clk 0:01:38.9]} 18.
a3 {[%clk 0:02:34.4]} 18... Qf6 {[%clk 0:01:38.7]} 19. b4 {[%clk 0:02:34.5]}
19... axb4 {[%clk 0:01:38.2]} 20. axb4 {[%clk 0:02:35.4]} 20... Ra8 {[%clk
0:01:37.7]} 21. Bf1 {[%clk 0:02:34.1]} 21... Rfe8 {[%clk 0:01:31.7]} 22. Nd4
{[%clk 0:02:32.7]} 22... Ne5 {[%clk 0:01:06.9]} 23. Nb5 {[%clk 0:02:32.5]} 23...
Re7 {[%clk 0:00:57]} 24. f4 {[%clk 0:02:32.1]} 24... Ng4 {[%clk 0:00:56.5]} 25.
h3 {[%clk 0:02:32.1]} 25... Rae8 {[%clk 0:00:18.4]} 26. Rxe7 {[%clk 0:02:29.1]}
26... Rxe7 {[%clk 0:00:18.7]} 27. hxg4 {[%clk 0:02:29.5]} 27... Qh4 {[%clk
0:00:19.6]} 28. Qd4+ {[%clk 0:02:23.6]} 28... Kh7 {[%clk 0:00:19]} 29. f5 {[%clk
0:02:13.4]} 29... Bc8 {[%clk 0:00:09.4]} 30. Qf2 {[%clk 0:01:58.5]} 30... Qg5
{[%clk 0:00:04.9]} 31. Re1 {[%clk 0:01:56.6]} 31... Rxe1 {[%clk 0:00:04.4]} 32.
fxg6+ {[%clk 0:01:55.8]} 1-0

[Event "*** Titled Tuesday Blitz"]
[Site "Chess.com"]
[Date "2020.05.12"]
[Round "1"]
[White "BilodeauA"]
[Black "Lion-Al-Messi"]
[Result "1-0"]
[WhiteElo "2889"]
[BlackElo "2446"]
[TimeControl "180+1"]
[EndTime "10:05:33 PDT"]
[Termination "BilodeauA won by resignation"]

1. e4 {[%clk 0:02:54.8]} 1... e6 {[%clk 0:02:59.1]} 2. d4 {[%clk 0:02:54.2]}
2... d5 {[%clk 0:02:59.5]} 3. Nc3 {[%clk 0:02:54.2]} 3... Nf6 {[%clk 0:02:59.2]}
4. e5 {[%clk 0:02:54.1]} 4... Nfd7 {[%clk 0:02:58.5]} 5. f4 {[%clk 0:02:54.3]}
5... c5 {[%clk 0:02:58.8]} 6. Nf3 {[%clk 0:02:54.6]} 6... Nc6 {[%clk 0:02:59]}
7. Be3 {[%clk 0:02:54.3]} 7... a6 {[%clk 0:02:59.2]} 8. Qd2 {[%clk 0:02:54.2]}
8... b5 {[%clk 0:02:59.3]} 9. dxc5 {[%clk 0:02:50.9]} 9... Bxc5 {[%clk
0:02:59.1]} 10. Bd3 {[%clk 0:02:51.3]} 10... Qb6 {[%clk 0:02:59.2]} 11. Bf2
{[%clk 0:02:51.2]} 11... Bb7 {[%clk 0:02:55.8]} 12. O-O {[%clk 0:02:49.4]} 12...
Bxf2+ {[%clk 0:02:55.7]} 13. Qxf2 {[%clk 0:02:49]} 13... Qxf2+ {[%clk
0:02:55.7]} 14. Kxf2 {[%clk 0:02:49.9]} 14... Ke7 {[%clk 0:02:55.8]} 15. a4
{[%clk 0:02:46.4]} 15... b4 {[%clk 0:02:55.3]} 16. Ne2 {[%clk 0:02:46.2]} 16...
Nc5 {[%clk 0:02:52.4]} 17. Ned4 {[%clk 0:02:43.6]} 17... g6 {[%clk 0:02:19.1]}
18. h4 {[%clk 0:02:39.9]} 18... h5 {[%clk 0:02:15.4]} 19. Ke3 {[%clk 0:02:39.3]}
19... Rhc8 {[%clk 0:02:11.9]} 20. a5 {[%clk 0:02:35.1]} 20... Rc7 {[%clk
0:02:01.8]} 21. Rg1 {[%clk 0:02:30.4]} 21... Rac8 {[%clk 0:02:00.3]} 22. g3
{[%clk 0:02:24.6]} 22... Ke8 {[%clk 0:01:19.2]} 23. g4 {[%clk 0:02:21.6]} 23...
hxg4 {[%clk 0:01:18.8]} 24. Rxg4 {[%clk 0:02:22]} 24... Ne4 {[%clk 0:01:17.7]}
25. Rh1 {[%clk 0:02:12.8]} 25... Ne7 {[%clk 0:01:11.9]} 26. h5 {[%clk
0:02:09.9]} 26... Nf5+ {[%clk 0:01:04.9]} 27. Nxf5 {[%clk 0:02:10.2]} 27... exf5
{[%clk 0:01:04.9]} 28. Rgg1 {[%clk 0:02:08]} 28... d4+ {[%clk 0:00:36.1]} 29.
Nxd4 {[%clk 0:02:07.1]} 29... Ng3 {[%clk 0:00:36]} 30. Rxg3 {[%clk 0:01:56.2]}
30... Bxh1 {[%clk 0:00:34.7]} 31. hxg6 {[%clk 0:01:57.1]} 31... fxg6 {[%clk
0:00:21.4]} 32. Rxg6 {[%clk 0:01:56.5]} 32... Be4 {[%clk 0:00:11.4]} 33. Bxa6
{[%clk 0:01:56.3]} 33... Rd8 {[%clk 0:00:07.6]} 34. Rg8+ {[%clk 0:01:55.6]}
34... Ke7 {[%clk 0:00:07.3]} 35. Rxd8 {[%clk 0:01:56.2]} 35... Kxd8 {[%clk
0:00:07.9]} 36. Ne6+ {[%clk 0:01:56.8]} 36... Kd7 {[%clk 0:00:08.4]} 37. Nxc7
{[%clk 0:01:57.7]} 37... Kxc7 {[%clk 0:00:09.3]} 38. Bd3 {[%clk 0:01:58.3]} 1-0

[Event "*** Titled Tuesday Blitz"]
[Site "Chess.com"]
[Date "2020.05.12"]
[Round "1"]
[White "Bagirova"]
[Black "FGHSMN"]
[Result "0-1"]
[WhiteElo "2186"]
[BlackElo "2529"]
[TimeControl "180+1"]
[EndTime "10:05:35 PDT"]
[Termination "FGHSMN won by resignation"]

1. d4 {[%clk 0:03:00.6]} 1... Nf6 {[%clk 0:02:58.5]} 2. Nf3 {[%clk 0:02:58.7]}
2... e6 {[%clk 0:02:56.5]} 3. Bf4 {[%clk 0:02:58.9]} 3... c5 {[%clk 0:02:54.4]}
4. e3 {[%clk 0:02:58.9]} 4... Nc6 {[%clk 0:02:53.7]} 5. c3 {[%clk 0:02:58.4]}
5... d5 {[%clk 0:02:50.7]} 6. Nbd2 {[%clk 0:02:56.6]} 6... Bd6 {[%clk
0:02:49.7]} 7. Bg3 {[%clk 0:02:56]} 7... O-O {[%clk 0:02:48.5]} 8. Bd3 {[%clk
0:02:54.8]} 8... Qe7 {[%clk 0:02:45.8]} 9. O-O {[%clk 0:02:54.9]} 9... e5 {[%clk
0:02:43.6]} 10. dxe5 {[%clk 0:02:54.4]} 10... Nxe5 {[%clk 0:02:44]} 11. Nxe5
{[%clk 0:02:53.5]} 11... Bxe5 {[%clk 0:02:44.2]} 12. Qc2 {[%clk 0:02:50.2]}
12... Bxg3 {[%clk 0:02:34.5]} 13. hxg3 {[%clk 0:02:49.2]} 13... Be6 {[%clk
0:02:26.8]} 14. c4 {[%clk 0:02:45.5]} 14... Rad8 {[%clk 0:02:14.9]} 15. Rfd1
{[%clk 0:02:42.6]} 15... h6 {[%clk 0:02:05.5]} 16. cxd5 {[%clk 0:02:37.7]} 16...
Nxd5 {[%clk 0:02:05.5]} 17. a3 {[%clk 0:02:36.4]} 17... Bg4 {[%clk 0:01:55.6]}
18. Nf3 {[%clk 0:02:33.4]} 18... Rd6 {[%clk 0:01:36.2]} 19. Bc4 {[%clk
0:02:21.6]} 19... Rfd8 {[%clk 0:01:33.3]} 20. Bxd5 {[%clk 0:02:11.5]} 20... Rxd5
{[%clk 0:01:31.7]} 21. Rxd5 {[%clk 0:02:11.9]} 21... Rxd5 {[%clk 0:01:32.3]} 22.
Rd1 {[%clk 0:02:12.2]} 22... Rxd1+ {[%clk 0:01:30.2]} 23. Qxd1 {[%clk
0:02:13.1]} 23... Be6 {[%clk 0:01:28.5]} 24. Qd2 {[%clk 0:02:08.1]} 24... b5
{[%clk 0:01:20.7]} 25. Qa5 {[%clk 0:02:04.6]} 25... Qd7 {[%clk 0:01:19.3]} 26.
Qd2 {[%clk 0:02:01.1]} 26... Qc7 {[%clk 0:01:17]} 27. e4 {[%clk 0:01:54.9]}
27... a5 {[%clk 0:01:15.4]} 28. e5 {[%clk 0:01:54.8]} 28... b4 {[%clk
0:01:14.6]} 29. axb4 {[%clk 0:01:53]} 29... axb4 {[%clk 0:01:15.1]} 30. Qc2
{[%clk 0:01:26.7]} 30... c4 {[%clk 0:01:13.3]} 31. Kh2 {[%clk 0:01:23.4]} 31...
c3 {[%clk 0:01:03.2]} 32. bxc3 {[%clk 0:01:19.8]} 32... Qxc3 {[%clk 0:01:01.7]}
33. Qxc3 {[%clk 0:01:19.9]} 33... bxc3 {[%clk 0:01:01.6]} 34. Ne1 {[%clk
0:01:20.5]} 34... Bf5 {[%clk 0:00:59.4]} 35. g4 {[%clk 0:01:09.9]} 35... c2
{[%clk 0:00:57.6]} 0-1

[Event "*** Titled Tuesday Blitz"]
[Site "Chess.com"]
[Date "2020.05.12"]
[Round "1"]
[White "pheonixking2000"]
[Black "MichailovM"]
[Result "1-0"]
[WhiteElo "2820"]
[BlackElo "2425"]
[TimeControl "180+1"]
[EndTime "10:05:36 PDT"]
[Termination "pheonixking2000 won by resignation"]

1. Nf3 {[%clk 0:03:00.9]} 1... Nf6 {[%clk 0:02:53.7]} 2. c4 {[%clk 0:02:59.7]}
2... g6 {[%clk 0:02:53.6]} 3. Nc3 {[%clk 0:02:59.4]} 3... Bg7 {[%clk 0:02:54.2]}
4. g3 {[%clk 0:02:59.5]} 4... O-O {[%clk 0:02:53.8]} 5. Bg2 {[%clk 0:02:59.8]}
5... d6 {[%clk 0:02:54.4]} 6. d4 {[%clk 0:02:58.5]} 6... Nc6 {[%clk 0:02:53.9]}
7. O-O {[%clk 0:02:57.6]} 7... a6 {[%clk 0:02:54.5]} 8. e4 {[%clk 0:02:57.5]}
8... Bg4 {[%clk 0:02:53.6]} 9. Be3 {[%clk 0:02:56.8]} 9... Nd7 {[%clk
0:02:50.3]} 10. h3 {[%clk 0:02:54.1]} 10... Bxf3 {[%clk 0:02:50.4]} 11. Bxf3
{[%clk 0:02:54.8]} 11... e5 {[%clk 0:02:51]} 12. d5 {[%clk 0:02:55.4]} 12... Nd4
{[%clk 0:02:51.3]} 13. Bg2 {[%clk 0:02:55.1]} 13... c5 {[%clk 0:02:50.8]} 14.
dxc6 {[%clk 0:02:50.4]} 14... bxc6 {[%clk 0:02:51]} 15. f4 {[%clk 0:02:50.4]}
15... a5 {[%clk 0:02:38.6]} 16. f5 {[%clk 0:02:36.9]} 16... Nc5 {[%clk
0:02:30.4]} 17. Qd2 {[%clk 0:02:31.1]} 17... a4 {[%clk 0:02:18.8]} 18. g4 {[%clk
0:02:31.2]} 18... Rb8 {[%clk 0:01:36]} 19. Rad1 {[%clk 0:02:29.5]} 19... Rb7
{[%clk 0:01:24]} 20. Rf2 {[%clk 0:02:29.4]} 20... Re8 {[%clk 0:01:00.3]} 21. g5
{[%clk 0:02:29.2]} 21... Qa5 {[%clk 0:00:54.9]} 22. h4 {[%clk 0:02:29.2]} 22...
Qb4 {[%clk 0:00:52.9]} 23. h5 {[%clk 0:02:10.9]} 23... Qxc4 {[%clk 0:00:44.8]}
24. h6 {[%clk 0:02:11.3]} 24... Bf8 {[%clk 0:00:44.4]} 25. Bf1 {[%clk
0:02:02.5]} 25... Qb4 {[%clk 0:00:44.1]} 26. a3 {[%clk 0:02:02.9]} 26... Qb3
{[%clk 0:00:28.6]} 27. Bxd4 {[%clk 0:02:03]} 27... exd4 {[%clk 0:00:28.5]} 28.
Qxd4 {[%clk 0:02:03.9]} 28... d5 {[%clk 0:00:18.4]} 29. exd5 {[%clk 0:02:01.2]}
29... cxd5 {[%clk 0:00:18.8]} 30. Nxd5 {[%clk 0:02:00.2]} 30... Nd7 {[%clk
0:00:17.5]} 31. fxg6 {[%clk 0:01:58.2]} 31... fxg6 {[%clk 0:00:12.7]} 32. Qf4
{[%clk 0:01:55.4]} 32... Ne5 {[%clk 0:00:02.8]} 33. Nf6+ {[%clk 0:01:54.9]}
33... Kh8 {[%clk 0:00:03.3]} 34. Nxe8 {[%clk 0:01:54.8]} 34... Be7 {[%clk
0:00:02.3]} 35. Qxe5+ {[%clk 0:01:54.8]} 1-0

[Event "*** Titled Tuesday Blitz"]
[Site "Chess.com"]
[Date "2020.05.12"]
[Round "1"]
[White "Vamostodorecto"]
[Black "OparinGrigoriy"]
[Result "0-1"]
[WhiteElo "2455"]
[BlackElo "2926"]
[TimeControl "180+1"]
[EndTime "10:05:39 PDT"]
[Termination "OparinGrigoriy won by checkmate"]

1. d4 {[%clk 0:03:00.9]} 1... Nf6 {[%clk 0:02:59.2]} 2. c4 {[%clk 0:03:00.7]}
2... e6 {[%clk 0:03:00.1]} 3. Nc3 {[%clk 0:03:00.1]} 3... Bb4 {[%clk 0:03:00.5]}
4. Nf3 {[%clk 0:03:00.6]} 4... O-O {[%clk 0:02:58.2]} 5. Bg5 {[%clk 0:02:59.6]}
5... h6 {[%clk 0:02:57.7]} 6. Bh4 {[%clk 0:02:59.1]} 6... d5 {[%clk 0:02:57.5]}
7. cxd5 {[%clk 0:03:00]} 7... exd5 {[%clk 0:02:57.2]} 8. e3 {[%clk 0:02:59.8]}
8... c6 {[%clk 0:02:56.4]} 9. Bd3 {[%clk 0:02:56.7]} 9... Nbd7 {[%clk
0:02:56.8]} 10. O-O {[%clk 0:02:55.9]} 10... Bd6 {[%clk 0:02:56.9]} 11. Qc2
{[%clk 0:02:36.3]} 11... Re8 {[%clk 0:02:56.5]} 12. a3 {[%clk 0:02:32.7]} 12...
a5 {[%clk 0:02:56.4]} 13. Rab1 {[%clk 0:02:29.6]} 13... Qe7 {[%clk 0:02:55]} 14.
Ne2 {[%clk 0:02:13.9]} 14... Nf8 {[%clk 0:02:51.3]} 15. h3 {[%clk 0:02:01.6]}
15... Qe6 {[%clk 0:02:39]} 16. Bg3 {[%clk 0:01:54.7]} 16... Ne4 {[%clk
0:02:20.5]} 17. Bxd6 {[%clk 0:01:43.3]} 17... Qxd6 {[%clk 0:02:20.6]} 18. Ne5
{[%clk 0:01:36.1]} 18... f6 {[%clk 0:02:19.1]} 19. Bxe4 {[%clk 0:01:30.1]} 19...
fxe5 {[%clk 0:02:16.9]} 20. Bf5 {[%clk 0:01:25.2]} 20... e4 {[%clk 0:02:09.2]}
21. Bxc8 {[%clk 0:01:23]} 21... Raxc8 {[%clk 0:02:10.1]} 22. b4 {[%clk
0:01:18.8]} 22... axb4 {[%clk 0:02:11]} 23. axb4 {[%clk 0:01:19.2]} 23... Ng6
{[%clk 0:02:09.7]} 24. Qc5 {[%clk 0:01:14.8]} 24... Qe6 {[%clk 0:01:49.8]} 25.
b5 {[%clk 0:01:09.9]} 25... Rf8 {[%clk 0:01:50.1]} 26. bxc6 {[%clk 0:01:06.6]}
26... bxc6 {[%clk 0:01:51]} 27. Rb7 {[%clk 0:01:02.2]} 27... Rf7 {[%clk
0:01:44.5]} 28. Rfb1 {[%clk 0:01:01]} 28... Rcf8 {[%clk 0:01:43.7]} 29. R1b6
{[%clk 0:00:37.4]} 29... Rxf2 {[%clk 0:01:37.3]} 30. Rxc6 {[%clk 0:00:36.5]}
30... Qf5 {[%clk 0:01:27.5]} 31. Rcc7 {[%clk 0:00:32.9]} 31... Rxg2+ {[%clk
0:01:22.9]} 32. Kxg2 {[%clk 0:00:31.1]} 32... Nh4+ {[%clk 0:01:23.3]} 33. Kg3
{[%clk 0:00:27.2]} 33... Qf3+ {[%clk 0:01:22.9]} 34. Kxh4 {[%clk 0:00:26.8]}
34... g5# {[%clk 0:01:23.4]} 0-1

[Event "*** Titled Tuesday Blitz"]
[Site "Chess.com"]
[Date "2020.05.12"]
[Round "1"]
[White "Orest_Vovk"]
[Black "SGchess01"]
[Result "0-1"]
[WhiteElo "2411"]
[BlackElo "2776"]
[TimeControl "180+1"]
[EndTime "10:05:39 PDT"]
[Termination "SGchess01 won by resignation"]

1. e4 {[%clk 0:03:00.1]} 1... Nf6 {[%clk 0:03:00.2]} 2. Nc3 {[%clk 0:02:58.3]}
2... d5 {[%clk 0:02:58.3]} 3. e5 {[%clk 0:02:56.8]} 3... Nfd7 {[%clk 0:02:57.7]}
4. e6 {[%clk 0:02:54.5]} 4... fxe6 {[%clk 0:02:57.6]} 5. d4 {[%clk 0:02:50.9]}
5... c5 {[%clk 0:02:57.8]} 6. Bd3 {[%clk 0:02:46.1]} 6... Nf6 {[%clk 0:02:54.7]}
7. dxc5 {[%clk 0:02:43.4]} 7... Nc6 {[%clk 0:02:54.3]} 8. Nf3 {[%clk 0:02:20.5]}
8... e5 {[%clk 0:02:53.5]} 9. Bb5 {[%clk 0:02:14.1]} 9... e4 {[%clk 0:02:34.5]}
10. Ne5 {[%clk 0:02:08.6]} 10... Bd7 {[%clk 0:02:33.4]} 11. Nxd7 {[%clk
0:01:58.9]} 11... Qxd7 {[%clk 0:02:34.3]} 12. Bg5 {[%clk 0:01:58.1]} 12... e6
{[%clk 0:02:31.1]} 13. Bxf6 {[%clk 0:01:56.7]} 13... gxf6 {[%clk 0:02:32]} 14.
Qh5+ {[%clk 0:01:55]} 14... Qf7 {[%clk 0:02:31.4]} 15. Bxc6+ {[%clk 0:01:52.2]}
15... bxc6 {[%clk 0:02:31.2]} 16. Qxf7+ {[%clk 0:01:51.5]} 16... Kxf7 {[%clk
0:02:32.1]} 17. Na4 {[%clk 0:01:51.6]} 17... Rg8 {[%clk 0:02:29.7]} 18. O-O
{[%clk 0:01:51.1]} 18... f5 {[%clk 0:02:26.1]} 19. f3 {[%clk 0:01:50.6]} 19...
exf3 {[%clk 0:01:59.2]} 20. Rxf3 {[%clk 0:01:48.5]} 20... Rg4 {[%clk 0:01:59.3]}
21. b3 {[%clk 0:01:46.2]} 21... Bg7 {[%clk 0:01:58.9]} 22. Re1 {[%clk
0:01:40.9]} 22... Bd4+ {[%clk 0:01:58.1]} 23. Kf1 {[%clk 0:01:36.1]} 23... Rag8
{[%clk 0:01:58.2]} 24. Re2 {[%clk 0:01:34.6]} 24... Kf6 {[%clk 0:01:56.2]} 25.
c3 {[%clk 0:01:30.7]} 25... Be5 {[%clk 0:01:54.5]} 26. Rfe3 {[%clk 0:01:29.8]}
26... Re4 {[%clk 0:01:52.6]} 27. Rxe4 {[%clk 0:01:29.3]} 27... fxe4 {[%clk
0:01:51.2]} 28. g3 {[%clk 0:01:27.8]} 28... h5 {[%clk 0:01:50.8]} 29. Rf2+
{[%clk 0:01:12]} 29... Ke7 {[%clk 0:01:50.8]} 30. Ke2 {[%clk 0:01:12.2]} 30...
h4 {[%clk 0:01:49.8]} 31. gxh4 {[%clk 0:01:12]} 31... Rh8 {[%clk 0:01:50.3]} 32.
c4 {[%clk 0:01:08.5]} 32... Rxh4 {[%clk 0:01:49.4]} 33. cxd5 {[%clk 0:01:08.6]}
33... exd5 {[%clk 0:01:50.3]} 34. Rf5 {[%clk 0:01:00.3]} 34... Ke6 {[%clk
0:01:48.2]} 35. Rf8 {[%clk 0:00:59.5]} 35... Rxh2+ {[%clk 0:01:47.7]} 36. Ke3
{[%clk 0:00:58.5]} 36... Rh3+ {[%clk 0:01:47.7]} 37. Ke2 {[%clk 0:00:57.9]}
37... d4 {[%clk 0:01:48.2]} 38. Re8+ {[%clk 0:00:57.6]} 38... Kf6 {[%clk
0:01:41.1]} 39. Nb6 {[%clk 0:00:52.3]} 39... d3+ {[%clk 0:01:39.1]} 40. Kf1
{[%clk 0:00:48.4]} 40... axb6 {[%clk 0:01:34.2]} 41. cxb6 {[%clk 0:00:46.8]}
41... Rh1+ {[%clk 0:01:31.6]} 42. Kg2 {[%clk 0:00:46.4]} 42... d2 {[%clk
0:01:32.1]} 0-1